bitfinex/quotes_SOLUSD_20241210
["timestamp","ask_amount","ask_price","bid_price","bid_amount"]
[1733838604955,0.42553191,214.94,214.91,22.78778557]
[1733838605167,0.42553191,214.94,214.93,22.78778557]
[1733838606853,0.42553191,214.94,214.93,111.28672514]
[1733838607162,0.871782,215.12,214.96,20.0]
[1733838607463,0.871782,215.12,214.98,22.78778557]
[1733838607648,0.871782,215.12,214.99,0.35018749]
[1733838607854,0.871782,215.12,214.99,23.13797306]
[1733838608167,0.871782,215.12,215.0,22.78778557]
[1733838608367,1.88276795,215.13,215.03,22.78778557]
[1733838608544,0.87170075,215.17,215.04,0.34995879]
[1733838609046,4.61508145,215.21,215.09,22.78778557]
[1733838609247,0.87142699,215.2,215.1,0.34941128]
[1733838609448,0.87138199,215.24,215.1,0.34941128]
[1733838609863,2.74506182,215.22,215.1,0.34941128]
[1733838610060,0.8713885,215.21,215.1,0.34941128]
[1733838610467,0.87137358,215.24,215.1,23.13719685]
[1733838610682,5.62395723,215.25,215.1,0.34941128]
[1733838610857,2.73360772,215.23,215.05,6.6301]
[1733838611167,0.12549,215.22,215.05,6.97985463]
[1733838611383,0.12549,215.2,215.05,6.97985463]
[1733838611546,0.12549,215.18,215.05,6.97985463]
[1733838612280,0.12549,215.16,215.02,0.3498118]
[1733838612587,0.12549,215.16,215.01,22.78778557]
[1733838612588,0.12549,215.14,214.99,6.65325021]
[1733838612746,0.12549,215.12,214.96,0.35024965]
[1733838612946,0.12549,215.1,214.96,0.35024965]
[1733838613871,0.12549,215.1,214.95,0.35053196]
[1733838615785,0.87197219,215.09,214.93,0.35050166]
[1733838615944,0.87197219,215.09,214.94,22.78778557]
[1733838615945,0.12549,215.08,214.94,22.78778557]
[1733838616146,0.12549,215.08,214.95,0.35052189]
[1733838616489,0.12549,215.08,214.92,22.78778557]
[1733838616652,0.12549,215.06,214.9,0.350584]
[1733838616852,0.12549,215.06,214.92,22.78778557]
[1733838617051,0.12549,215.06,214.93,0.3507004]
[1733838617772,0.87209676,215.06,214.93,0.3507004]
[1733838618186,0.87209676,215.06,214.89,6.3032]
[1733838618187,0.12549,215.05,214.9,0.35073135]
[1733838618362,0.12549,215.03,214.9,22.78778557]
[1733838618682,0.8721988,215.08,214.93,22.78778557]
[1733838618892,0.12549,215.07,214.94,0.3507664]
[1733838619179,0.12549,215.05,214.94,0.3507664]
[1733838619381,0.87212392,215.04,214.94,0.3507664]
[1733838619584,21.82373606,215.1,214.91,22.78778557]
[1733838619585,0.87212206,215.09,214.92,0.35080142]
[1733838620269,0.87212206,215.09,214.9,0.35077987]
[1733838620474,0.87212206,215.09,214.9,23.13856544]
[1733838621078,20.0,215.08,214.9,23.13856544]
[1733838621397,20.0,215.06,214.86,0.35097142]
[1733838621697,20.0,215.02,214.83,6.3032]
[1733838621882,0.87249612,215.01,214.83,6.3032]
[1733838622068,0.87249612,215.01,214.84,0.35151011]
[1733838623090,20.12549,215.0,214.8,23.13929568]
[1733838623276,0.12549,214.98,214.8,0.35151011]
[1733838623602,0.12549,214.94,214.75,2.0982605]
[1733838623766,0.99826254,214.94,214.76,0.35210237]
[1733838623971,20.0,214.93,214.75,0.5940605]
[1733838624187,0.87284765,214.92,214.75,0.5940605]
[1733838624606,20.0,214.91,214.75,0.5940605]
[1733838624778,0.87289628,214.9,214.75,0.5940605]
[1733838624963,20.0,214.89,214.75,0.5940605]
[1733838625168,0.87302962,214.88,214.75,0.5940605]
[1733838625418,0.87302962,214.88,214.76,23.14023604]
[1733838625606,20.87273167,214.92,214.78,22.78778557]
[1733838625895,20.87273167,214.92,214.79,0.35188868]
[1733838626284,0.87273167,214.92,214.81,22.78778557]
[1733838626469,3.8751,214.95,214.79,0.35188868]
[1733838626470,0.87251084,214.94,214.84,22.78778557]
[1733838626684,3.8751,214.95,214.85,23.13920312]
[1733838627087,0.8723939,214.94,214.85,0.35141755]
[1733838627324,0.8723939,214.94,214.82,22.78778557]
[1733838627325,0.8723939,214.94,214.82,0.35153229]
[1733838627482,0.12549,214.93,214.8,6.65488876]
[1733838627686,0.12549,214.93,214.8,0.35168876]
[1733838628316,0.12549,214.93,214.78,0.351873]
[1733838628812,0.12549,214.93,214.81,22.78778557]
[1733838629031,0.12549,214.93,214.77,22.78778557]
[1733838629321,0.12549,214.91,214.78,0.35164871]
[1733838629523,0.12549,214.91,214.75,0.94604834]
[1733838629722,0.12549,214.91,214.75,23.73383391]
[1733838630089,0.12549,214.91,214.77,22.78778557]
[1733838630292,20.0,214.93,214.84,22.78778557]
[1733838630293,0.87272323,214.93,214.84,22.78778557]
[1733838630506,0.87272323,214.93,214.82,22.78778557]
[1733838630819,0.12549,214.92,214.79,0.35160445]
[1733838630988,0.12549,214.9,214.75,23.73385972]
[1733838631193,0.8728092,214.89,214.75,0.94607415]
[1733838631420,0.87284221,214.94,214.75,0.94607415]
[1733838631617,20.0,214.92,214.75,0.94607415]
[1733838631820,0.12549,214.9,214.75,0.5940605]
[1733838631993,20.12549,214.88,214.75,0.5940605]
[1733838632202,0.87284599,214.87,214.75,0.5940605]
[1733838632904,0.12549,214.86,214.75,0.5940605]
[1733838633106,0.12549,214.84,214.75,0.5940605]
[1733838633307,0.8729531,214.87,214.75,0.5940605]
[1733838633510,0.12549,214.86,214.75,0.5940605]
[1733838633720,0.87285259,214.85,214.75,0.5940605]
[1733838634727,1.91003686,214.88,214.75,0.5940605]
[1733838634728,1.91003686,214.88,214.77,22.78778557]
[1733838635016,0.87271738,214.87,214.79,22.78778557]
[1733838635218,0.87263726,214.94,214.8,23.13961738]
[1733838635412,0.87263726,214.94,214.8,0.35183181]
[1733838635593,0.87263726,214.94,214.78,22.78778557]
[1733838635798,0.87263726,214.94,214.79,0.35200354]
[1733838636399,20.0,214.92,214.77,22.78778557]
[1733838636618,0.87273896,214.91,214.75,0.94601843]
[1733838636792,0.87273896,214.91,214.75,0.5940605]
[1733838636992,20.0,214.9,214.75,0.5940605]
[1733838637219,0.87296589,214.89,214.75,0.5940605]
[1733838637644,0.87296589,214.89,214.75,23.38184607]
[1733838637813,0.87296589,214.89,214.79,22.78778557]
[1733838638129,0.87267547,214.94,214.84,22.78778557]
[1733838638427,3.8416,215.01,214.88,22.78778557]
[1733838638638,0.87224222,215.0,214.84,23.1388273]
[1733838638838,0.12549,214.99,214.82,22.78778557]
[1733838638999,19.66125872,215.01,214.82,22.78778557]
[1733838639000,0.12549,214.97,214.82,22.78778557]
[1733838639331,3.60078412,215.0,214.87,22.78778557]
[1733838639515,3.60078412,215.0,214.88,23.13893058]
[1733838639836,0.12549,214.99,214.88,0.35114501]
[1733838640197,0.12549,214.99,214.81,31.5452]
[1733838640198,0.12549,214.99,214.84,22.78778557]
[1733838640398,0.12549,214.99,214.82,0.3512582]
[1733838640399,0.87245159,214.98,214.82,23.13924605]
[1733838640622,20.87245159,214.98,214.82,0.35146048]
[1733838640917,20.0,214.96,214.8,22.78778557]
[1733838641119,0.87259431,214.95,214.8,22.78778557]
[1733838642012,0.87259431,214.95,214.82,22.78778557]
[1733838642214,0.87259431,214.95,214.83,0.35157397]
[1733838642923,0.12549,214.94,214.83,0.35157397]
[1733838643130,0.99799598,214.94,214.83,0.35157397]
[1733838643823,0.99799598,214.94,214.82,22.78778557]
[1733838644018,0.99799598,214.94,214.81,22.78778557]
[1733838644198,0.87258333,214.93,214.81,22.78778557]
[1733838644400,0.87258333,214.93,214.79,23.13950637]
[1733838644819,0.12549,214.92,214.79,0.3517208]
[1733838645217,2.86217961,214.92,214.79,0.3517208]
[1733838645526,3.7907,214.91,214.75,23.38184607]
[1733838645730,0.12549,214.88,214.75,0.5940605]
[1733838645906,0.99834346,214.88,214.75,0.5940605]
[1733838646227,34.96834346,214.88,214.75,0.5940605]
[1733838646925,20.87285346,214.88,214.75,0.5940605]
[1733838648018,20.12549,214.87,214.75,0.5940605]
[1733838648223,0.12549,214.85,214.75,0.5940605]
[1733838648535,0.12549,214.83,214.75,0.5940605]
[1733838648824,0.12549,214.81,214.75,0.5940605]
[1733838649609,0.12549,214.8,214.75,0.5940605]
[1733838649813,0.87314961,214.79,214.75,0.5940605]
[1733838650214,0.12549,214.78,214.75,0.5940605]
[1733838650716,0.87329839,214.77,214.75,6.05e-05]
[1733838650913,20.0,214.76,214.62,0.35289011]
[1733838651227,1.29893964,214.75,214.6,0.35337273]
[1733838651419,1.29893964,214.75,214.58,0.35350042]
[1733838651607,21.29893964,214.75,214.58,0.35350042]
[1733838652037,1.29893964,214.75,214.58,0.35350042]
[1733838652618,1.29893964,214.75,214.61,22.78778557]
[1733838652810,1.29893964,214.75,214.64,22.78778557]
[1733838653010,0.42553192,214.75,214.68,22.78778557]
[1733838653243,0.42553192,214.75,214.69,0.35269738]
[1733838653728,0.42553192,214.75,214.69,23.14048295]
[1733838653907,0.42553192,214.75,214.72,22.78778557]
[1733838654109,0.42553192,214.75,214.73,0.35241747]
[1733838655134,0.42553192,214.75,214.67,0.35251069]
[1733838655550,0.42553192,214.75,214.64,23.14060204]
[1733838655750,0.42553192,214.75,214.64,0.35281647]
[1733838656040,0.12549,214.74,214.61,0.35327694]
[1733838656329,0.42553192,214.73,214.61,0.35327694]
[1733838656509,0.87339425,214.72,214.61,0.35327694]
[1733838656724,0.87339425,214.72,214.58,22.78778557]
[1733838656725,0.87339425,214.72,214.58,0.35336679]
[1733838656923,0.42553192,214.71,214.56,6.1159]
[1733838657124,0.87355715,214.7,214.56,6.46957158]
[1733838657325,0.87355715,214.7,214.53,23.38184607]
[1733838657326,20.87355715,214.7,214.53,23.38184607]
[1733838657544,0.42553192,214.69,214.54,0.35387234]
[1733838657735,0.87360261,214.68,214.54,0.35387234]
[1733838658140,0.42553192,214.67,214.54,23.14165791]
[1733838658646,1.29914177,214.67,214.54,23.14165791]
[1733838659655,0.99913185,214.66,214.54,0.35387234]
[1733838660045,0.42553192,214.65,214.54,0.35387234]
[1733838660551,0.99918055,214.64,214.53,0.5940605]
[1733838660752,0.87369055,214.64,214.54,0.35408905]
[1733838660932,0.42553192,214.63,214.54,0.35408905]
[1733838661455,0.42553192,214.63,214.54,23.14187462]
[1733838662525,0.42553192,214.63,214.53,0.5940605]
[1733838664134,2.2238,214.61,214.53,0.5940605]
[1733838664342,2.2238,214.61,214.41,22.78778557]
[1733838664343,20.99934682,214.6,214.41,22.78778557]
[1733838664561,21.42487874,214.6,214.42,0.35473313]
[1733838664737,0.12549,214.58,214.4,22.78778557]
[1733838664941,20.99961884,214.58,214.41,0.35481498]
[1733838665164,0.12549,214.56,214.39,24.77012573]
[1733838665472,0.12549,214.54,214.39,24.77012573]
[1733838665765,0.12549,214.54,214.39,0.35484016]
[1733838665766,0.9997111,214.54,214.39,0.35484016]
[1733838665971,0.12549,214.52,214.38,6.2382]
[1733838666142,0.99983395,214.52,214.37,0.3552452]
[1733838666338,0.99983395,214.52,214.33,7.8657]
[1733838666339,0.12549,214.5,214.34,0.35521581]
[1733838666557,0.99995041,214.5,214.34,0.35521581]
[1733838666866,0.42553192,214.49,214.35,22.78778557]
[1733838667167,0.12549,214.47,214.34,0.35521581]
[1733838667374,0.87453158,214.46,214.34,0.35521581]
[1733838667549,0.87453158,214.46,214.32,0.5940605]
[1733838667550,1.00002701,214.45,214.32,0.5940605]
[1733838667749,0.87453701,214.45,214.33,0.35583811]
[1733838667947,0.42553192,214.44,214.33,0.35583811]
[1733838668142,0.42553192,214.44,214.37,22.78778557]
[1733838668454,0.42553192,214.44,214.39,22.78778557]
[1733838668651,0.42553192,214.44,214.35,0.35511323]
[1733838669182,0.42553192,214.44,214.33,0.35558466]
[1733838669473,0.42553192,214.44,214.32,0.5940605]
[1733838670153,2.45266061,214.43,214.32,0.5940605]
[1733838670590,20.0,214.4,214.32,0.5940605]
[1733838670762,0.87486485,214.39,214.32,0.5940605]
[1733838670958,1.30039677,214.39,214.32,0.5940605]
[1733838671286,0.12549,214.38,214.32,0.5940605]
[1733838671574,0.12549,214.36,214.32,0.5940605]
[1733838671782,0.12549,214.34,214.32,0.5940605]
[1733838671958,0.87496358,214.35,214.32,6.05e-05]
[1733838672164,0.42553192,214.33,214.32,6.05e-05]
[1733838672848,0.55102192,214.33,214.32,6.05e-05]
[1733838673159,0.55102192,214.33,214.15,0.35639448]
[1733838673160,0.12549,214.32,214.15,0.35639448]
[1733838673344,0.12549,214.32,214.13,22.78778557]
[1733838673345,21.00063973,214.32,214.13,22.78778557]
[1733838673786,0.12549,214.3,214.12,23.14464233]
[1733838673958,0.12549,214.3,214.09,6.0253]
[1733838673959,20.12549,214.28,214.09,6.0253]
[1733838674147,0.12549,214.26,214.1,0.95157441]
[1733838674452,0.87548689,214.25,214.14,22.78778557]
[1733838674791,0.42553192,214.25,214.18,22.78778557]
[1733838675073,0.42553192,214.25,214.14,22.78778557]
[1733838675277,0.42553192,214.25,214.16,22.78778557]
[1733838675460,0.42553192,214.25,214.18,22.78778557]
[1733838675656,0.42553192,214.25,214.19,23.1444761]
[1733838675882,0.42553192,214.25,214.22,22.78778557]
[1733838676085,0.42553192,214.25,214.24,22.78778557]
[1733838676253,0.42553192,214.25,214.24,23.16425557]
[1733838676463,0.42553192,214.25,214.24,76.94113957]
[1733838676660,0.42553192,214.25,214.24,22.78778557]
[1733838676853,0.42553192,214.25,214.23,6.38174673]
[1733838677295,0.42553192,214.25,214.2,24.42958557]
[1733838677497,0.42553192,214.25,214.24,22.78778557]
[1733838677852,0.42553192,214.25,214.23,22.78778557]
[1733838678087,0.42553192,214.25,214.21,0.35634269]
[1733838678595,0.42553192,214.25,214.16,23.14443003]
[1733838679059,0.42553192,214.25,214.16,0.35664446]
[1733838679257,0.42553192,214.25,214.17,22.78778557]
[1733838679583,0.42553192,214.25,214.18,0.35694187]
[1733838680972,0.42553192,214.25,214.21,22.78778557]
[1733838681177,0.42553192,214.25,214.24,22.78778557]
[1733838681474,0.42553192,214.25,214.22,0.35640118]
[1733838682084,0.42553192,214.25,214.24,23.03876557]
[1733838682265,0.42553192,214.25,214.24,29.5453395]
[1733838683070,1.90219405,214.43,214.28,0.25098]
[1733838683262,3.8271,214.47,214.28,0.25098]
[1733838683263,0.12549,214.45,214.33,22.78778557]
[1733838683479,0.12549,214.45,214.28,22.91327557]
[1733838683480,0.12549,214.45,214.34,23.14324214]
[1733838683657,0.87454269,214.46,214.34,23.14324214]
[1733838683863,3.8271,214.47,214.34,23.14324214]
[1733838684258,3.8271,214.47,214.34,0.35545657]
[1733838684460,2.74103152,214.48,214.35,23.14292265]
[1733838684675,0.12549,214.46,214.35,0.35513708]
[1733838684886,0.12549,214.46,214.32,22.78778557]
[1733838685059,0.8743408,214.47,214.35,22.78778557]
[1733838685382,0.8743408,214.47,214.36,0.35536531]
[1733838685893,0.12549,214.46,214.36,0.35536531]
[1733838686083,0.12549,214.46,214.34,0.35554493]
[1733838686582,0.8743408,214.47,214.34,23.1433305]
[1733838686880,3.61536727,214.48,214.38,22.78778557]
[1733838687094,3.61536727,214.48,214.34,0.35521543]
[1733838687587,0.12549,214.47,214.34,0.35521543]
[1733838687753,0.12549,214.45,214.34,0.35521543]
[1733838687955,0.87452528,214.44,214.27,22.78778557]
[1733838688158,0.87452528,214.44,214.26,22.78778557]
[1733838688484,0.87452528,214.44,214.32,22.78778557]
[1733838688779,0.87452528,214.44,214.34,22.78778557]
[1733838688980,2.74103152,214.48,214.35,0.35552072]
[1733838688981,0.87448171,214.47,214.35,0.35552072]
[1733838689168,0.87448171,214.47,214.36,22.78778557]
[1733838689365,1.6033,214.53,214.39,22.78778557]
[1733838689687,1.6033,214.53,214.4,0.35505583]
[1733838689688,0.87424927,214.51,214.4,0.35505583]
[1733838690504,2.75090741,214.49,214.36,0.35514432]
[1733838690660,0.87444519,214.48,214.36,0.35514432]
[1733838690856,0.87444519,214.48,214.33,312.3554455]
[1733838691060,0.12549,214.47,214.32,22.78778557]
[1733838691263,0.12549,214.47,214.33,0.35560277]
[1733838691687,0.12549,214.45,214.29,22.78778557]
[1733838691884,0.12549,214.43,214.28,0.35572996]
[1733838692088,0.12549,214.41,214.24,22.78778557]
[1733838692292,0.12549,214.41,214.22,23.14376589]
[1733838692293,20.12549,214.39,214.22,23.14376589]
[1733838692469,0.12549,214.37,214.22,0.35598032]
[1733838693080,0.87492078,214.38,214.27,22.78778557]
[1733838693288,0.87492078,214.38,214.23,0.12549]
[1733838693289,20.0,214.39,214.29,22.78778557]
[1733838693488,5.739089,214.42,214.32,22.78778557]
[1733838693793,5.739089,214.42,214.3,23.14340494]
[1733838693979,6.61303826,214.47,214.33,22.78778557]
[1733838694291,0.12549,214.46,214.34,22.78778557]
[1733838694483,0.87448737,214.45,214.33,0.35540035]
[1733838694673,3.8705,214.47,214.37,22.78778557]
[1733838694870,3.8705,214.52,214.38,23.14300982]
[1733838695074,0.87431718,214.48,214.38,23.14300982]
[1733838695265,0.87432258,214.51,214.39,22.78778557]
[1733838695462,0.8742763,214.48,214.4,0.3551099]
[1733838695896,0.87431765,214.51,214.4,0.3551099]
[1733838696096,4.74470143,214.52,214.41,22.78778557]
[1733838696398,0.87416493,214.51,214.4,22.78778557]
[1733838696569,0.12549,214.51,214.4,22.78778557]
[1733838696770,3.8705,214.52,214.4,22.78778557]
[1733838697104,2.84509434,214.51,214.4,22.78778557]
[1733838697292,2.84509434,214.51,214.41,0.35494008]
[1733838697592,3.8705,214.52,214.41,0.35494008]
[1733838697899,1.84130967,214.55,214.44,22.78778557]
[1733838698191,0.99955887,214.54,214.45,0.35469503]
[1733838698582,0.87406887,214.54,214.45,0.35469503]
[1733838698786,4.94933704,214.57,214.46,22.78778557]
[1733838699095,1.6467,214.58,214.42,30.0]
[1733838699096,3.09786847,214.63,214.49,22.78778557]
[1733838699264,3.09786847,214.63,214.39,44.44858557]
[1733838699265,2.84372343,214.59,214.53,22.78778557]
[1733838699470,2.84372343,214.59,214.5,0.35404231]
[1733838699666,0.12549,214.62,214.47,22.78778557]
[1733838699878,2.96641421,214.62,214.5,22.78778557]
[1733838700073,3.71471429,214.62,214.52,22.78778557]
[1733838700293,1.6467,214.64,214.54,22.78778557]
[1733838700510,0.8737322,214.67,214.55,0.35376842]
[1733838700794,1.6467,214.71,214.6,22.78778557]
[1733838701096,2.81517143,214.69,214.58,22.78778557]
[1733838701283,2.81517143,214.69,214.59,23.14126228]
[1733838701720,2.2238,214.74,214.59,23.14126228]
[1733838701721,2.2238,214.74,214.63,22.78778557]
[1733838701901,0.87345883,214.76,214.66,22.78778557]
[1733838702201,2.76930373,214.76,214.67,0.35293227]
[1733838702375,2.2238,214.8,214.67,23.14071784]
[1733838702571,0.12549,214.79,214.67,0.35293227]
[1733838702819,0.87308683,214.79,214.67,23.14071784]
[1733838703275,1.83069438,214.8,214.69,37.24360448]
[1733838703478,0.87304382,214.84,214.7,37.59607753]
[1733838704284,2.75727544,214.8,214.7,0.35247305]
[1733838704485,0.87302107,214.82,214.73,37.24360448]
[1733838704807,0.12549,214.84,214.74,0.35228759]
[1733838704981,0.12549,214.84,214.68,37.59587204]
[1733838704982,3.76272628,214.84,214.68,37.59587204]
[1733838705315,3.76272628,214.84,214.68,0.35226756]
[1733838705603,3.76272628,214.84,214.7,37.24360448]
[1733838705802,3.76272628,214.84,214.64,30.0]
[1733838705803,3.76272628,214.84,214.71,37.59604003]
[1733838706302,3.76272628,214.84,214.68,37.24360448]
[1733838706480,3.76272628,214.84,214.69,0.35271136]
[1733838706810,13.76272628,214.84,214.62,0.35269235]
[1733838707025,0.12549,214.82,214.62,0.35269235]
[1733838707300,0.12549,214.82,214.6,6.1378]
[1733838707301,0.12549,214.76,214.6,6.1378]
[1733838707509,0.99892862,214.76,214.6,0.35343452]
[1733838707804,0.99892862,214.76,214.62,37.24360448]
[1733838707982,0.99892862,214.76,214.63,0.35310596]
[1733838708183,0.99892862,214.76,214.63,37.59671044]
[1733838708501,0.87324421,214.75,214.6,37.24360448]
[1733838708806,0.87331165,214.78,214.61,0.35318059]
[1733838709101,20.0,214.77,214.61,0.35318059]
[1733838709274,0.87334207,214.76,214.58,37.24360448]
[1733838709481,20.0,214.75,214.58,37.24360448]
[1733838709679,0.87343759,214.74,214.57,37.24360448]
[1733838709878,0.87343759,214.74,214.55,0.35324144]
[1733838709879,1.5089,214.72,214.54,43.73483312]
[1733838710216,0.87356696,214.71,214.59,37.24360448]
[1733838710413,1.5089,214.72,214.62,37.24360448]
[1733838710712,20.0,214.71,214.6,0.35307796]
[1733838710920,0.87342239,214.7,214.6,0.35307796]
[1733838711081,0.87342239,214.7,214.58,0.3534265]
[1733838711276,0.42553191,214.69,214.58,0.3534265]
[1733838712012,0.12549,214.68,214.55,37.59727275]
[1733838712218,0.99905354,214.68,214.56,37.24360448]
[1733838712411,0.42553191,214.67,214.58,37.24360448]
[1733838712620,0.42553191,214.67,214.55,37.59713382]
[1733838712806,0.42553191,214.67,214.56,37.24360448]
[1733838713120,0.42553191,214.67,214.58,37.24360448]
[1733838713405,0.42553191,214.67,214.59,37.5970151]
[1733838713583,0.42553191,214.67,214.59,0.35341062]
[1733838713988,0.42553191,214.67,214.59,37.5970151]
[1733838714684,0.42553191,214.67,214.56,0.3533329]
[1733838714881,0.42553191,214.67,214.56,37.59693738]
[1733838715106,0.42553191,214.67,214.56,0.3533329]
[1733838715411,1.29908239,214.67,214.56,0.3533329]
[1733838715910,0.12549,214.66,214.51,0.35380388]
[1733838716112,0.12549,214.64,214.51,0.35380388]
[1733838716617,0.12549,214.62,214.51,0.35380388]
[1733838716784,2.34929,214.6,214.45,6.2231]
[1733838717120,0.12549,214.58,214.45,6.57747385]
[1733838717289,1.29946299,214.59,214.45,6.57747385]
[1733838717290,20.0,214.57,214.45,6.57747385]
[1733838717610,20.42553191,214.57,214.47,37.24360448]
[1733838717816,20.42553191,214.57,214.48,0.35430038]
[1733838717817,0.42553191,214.57,214.48,0.35430038]
[1733838717988,20.42553191,214.57,214.46,0.35439997]
[1733838718311,20.42553191,214.57,214.46,37.59800445]
[1733838718519,0.42553191,214.57,214.47,37.24360448]
[1733838718688,0.42553191,214.57,214.48,0.35432862]
[1733838718886,20.42553191,214.57,214.48,0.35432862]
[1733838719718,0.42553191,214.57,214.48,0.35432862]
[1733838719879,0.42553191,214.57,214.4,1.5659]
[1733838719880,0.99940776,214.56,214.43,37.5979973]
[1733838720085,1.84230667,214.59,214.49,37.24360448]
[1733838720324,0.42553191,214.55,214.5,0.3541324]
[1733838720691,0.42553191,214.55,214.54,37.24360448]
[1733838721037,0.42553191,214.55,214.54,91.39695848]
[1733838721307,3.8643,214.75,214.59,0.12549]
[1733838721483,4.71655549,214.79,214.68,37.24360448]
[1733838721685,0.87306272,214.78,214.69,0.35268272]
[1733838722195,0.87310711,214.77,214.64,37.24360448]
[1733838722502,2.83023378,214.79,214.68,37.24360448]
[1733838722702,0.87306357,214.78,214.66,37.24360448]
[1733838722910,0.87306357,214.78,214.67,0.35281782]
[1733838723089,0.87310035,214.81,214.68,37.24360448]
[1733838723280,1.90244252,214.82,214.74,37.24360448]
[1733838723482,1.46691174,214.86,214.75,37.59586425]
[1733838723683,0.5940605,214.86,214.79,37.24360448]
[1733838723879,0.5940605,214.86,214.8,37.59545875]
[1733838724081,0.5940605,214.86,214.82,37.24360448]
[1733838724297,0.5940605,214.86,214.83,37.59527563]
[1733838724509,0.5940605,214.86,214.83,0.35167115]
[1733838724926,0.5940605,214.86,214.78,37.24360448]
[1733838725102,0.5940605,214.86,214.82,37.24360448]
[1733838725424,0.5940605,214.86,214.79,0.35160884]
[1733838725794,0.5940605,214.86,214.74,0.35193936]
[1733838725795,0.12549,214.85,214.74,0.35193936]
[1733838726015,0.99835421,214.85,214.71,37.24360448]
[1733838726216,0.99835421,214.85,214.69,37.24360448]
[1733838726418,0.99835421,214.85,214.71,37.24360448]
[1733838726585,0.99835421,214.85,214.72,0.35243411]
[1733838726785,0.99835421,214.85,214.76,37.24360448]
[1733838726786,0.87286421,214.85,214.76,37.24360448]
[1733838727006,0.5940605,214.86,214.77,0.35200955]
[1733838727421,0.12549,214.85,214.73,37.24360448]
[1733838727592,0.99836304,214.85,214.74,0.35230338]
[1733838728192,0.99836304,214.85,214.68,37.24360448]
[1733838728395,0.99836304,214.85,214.69,0.35265389]
[1733838728895,0.99836304,214.85,214.73,37.24360448]
[1733838729104,0.99836304,214.85,214.74,37.59585667]
[1733838729302,0.5940605,214.86,214.77,37.24360448]
[1733838729499,0.5940605,214.86,214.69,30.0]
[1733838729500,0.5940605,214.86,214.78,37.59562781]
[1733838729897,0.5940605,214.86,214.74,37.24360448]
[1733838729898,1.46675622,214.86,214.74,37.24360448]
[1733838730098,1.46675622,214.86,214.75,0.35227726]
[1733838730621,1.46675622,214.86,214.74,37.59587406]
[1733838730983,1.46675622,214.86,214.74,0.35226958]
[1733838731188,0.5940605,214.86,214.74,37.59587406]
[1733838731695,0.87279614,214.85,214.71,37.24360448]
[1733838732019,1.5299,214.83,214.64,37.59602952]
[1733838732191,23.5224141,214.82,214.64,0.35242504]
[1733838732398,20.0,214.8,214.64,0.35242504]
[1733838732607,0.87322163,214.79,214.67,37.24360448]
[1733838732817,0.87322163,214.79,214.65,37.24360448]
[1733838733117,0.12549,214.78,214.67,37.24360448]
[1733838733408,2.6492,214.82,214.74,312.0]
[1733838733609,1.5299,214.83,214.75,37.59604584]
[1733838733815,0.12549,214.85,214.75,37.59604584]
[1733838734013,1.46691573,214.86,214.78,37.24360448]
[1733838734014,0.5940605,214.86,214.78,37.24360448]
[1733838734512,0.5940605,214.86,214.76,37.24360448]
[1733838734513,1.46671953,214.86,214.76,37.24360448]
[1733838734711,1.46671953,214.86,214.77,0.35207317]
[1733838734922,0.5940605,214.86,214.77,37.59567765]
[1733838735293,20.99823297,214.85,214.77,0.35207317]
[1733838735701,20.12549,214.85,214.76,0.35214198]
[1733838735917,20.12549,214.85,214.76,37.59574646]
[1733838736216,0.87278563,214.84,214.71,0.35212856]
[1733838736417,0.87278563,214.84,214.72,37.24360448]
[1733838736601,0.12549,214.83,214.71,0.35212856]
[1733838736799,0.12549,214.81,214.66,37.24360448]
[1733838736998,0.12549,214.79,214.64,37.24360448]
[1733838737189,0.12549,214.79,214.65,0.35303466]
[1733838737190,0.12549,214.77,214.65,0.35303466]
[1733838737390,0.12549,214.77,214.68,37.24360448]
[1733838737613,0.12549,214.77,214.69,0.35274055]
[1733838737814,0.12549,214.79,214.69,0.35274055]
[1733838738031,0.12549,214.77,214.64,37.24360448]
[1733838738311,0.12549,214.77,214.65,0.35299413]
[1733838738713,0.12549,214.77,214.67,37.24360448]
[1733838738902,0.87309459,214.77,214.68,0.35274647]
[1733838739107,0.12549,214.76,214.65,0.35274647]
[1733838739300,0.12549,214.76,214.66,37.24360448]
[1733838739507,0.12549,214.76,214.67,0.35290856]
[1733838740421,0.87318356,214.79,214.67,0.35290856]
[1733838740912,20.0,214.81,214.66,0.35282974]
[1733838741100,0.87321997,214.8,214.66,0.35282974]
[1733838741306,0.87321997,214.8,214.66,37.59643422]
[1733838741918,0.87321997,214.8,214.66,0.35282974]
[1733838742619,0.87321997,214.8,214.65,0.35294641]
[1733838743194,0.872992,214.82,214.7,37.24360448]
[1733838743423,0.87295409,214.87,214.73,37.24360448]
[1733838743621,1.46694393,214.86,214.75,37.24360448]
[1733838743826,0.5940605,214.86,214.77,37.24360448]
[1733838744034,0.5940605,214.86,214.78,0.3519871]